bitfinex/quotes_ETHUSD_20240614
["timestamp","ask_amount","ask_price","bid_price","bid_amount"]
[1718405753508,0.2,3488.0,3486.8,14.29226214]
[1718405753509,0.2,3488.0,3487.3,2.3982]
[1718405753692,0.2,3488.0,3487.9,8.60115]
[1718405753892,0.2,3488.0,3487.9,9.461265]
[1718405754609,0.2,3488.0,3487.9,2.86705]
[1718405754809,0.2,3488.0,3487.8,2.86712]
[1718405755106,0.0033935,3487.9,3487.8,2.86712]
[1718405755481,0.2,3488.0,3487.8,2.86713]
[1718405755692,0.2,3488.0,3487.3,5.2657]
[1718405756008,0.2,3488.0,3487.8,2.86711]
[1718405758512,3.06697,3488.0,3487.8,2.86711]
[1718405758696,0.2,3488.0,3486.8,2.86794]
[1718405758899,2.86747,3487.4,3487.0,2.86778]
[1718405759105,0.573485,3487.4,3486.7,2.3982]
[1718405759409,2.86724,3487.7,3487.0,2.86778]
[1718405759602,0.2,3488.0,3487.5,2.86731]
[1718405759603,2.86705,3487.9,3487.5,2.86731]
[1718405759817,2.86705,3487.9,3487.6,2.92462991]
[1718405760121,0.2,3488.0,3487.6,2.92462991]
[1718405760321,0.2,3488.0,3487.9,2.86705]
[1718405760612,0.2,3488.0,3487.9,5.7341]
[1718405762197,0.2,3488.0,3487.9,2.86705]
[1718405762522,0.2,3488.0,3487.7,2.86719]
[1718405762812,3.06704,3488.0,3487.7,2.86719]
[1718405763375,3.06704,3488.0,3487.6,2.86729]
[1718405763376,2.86706,3487.9,3487.6,2.86729]
[1718405765691,0.593395,3487.8,3487.0,2.4121]
[1718405765895,0.2,3488.0,3486.7,2.86796]
[1718405765896,2.86779,3487.0,3486.7,2.86796]
[1718405766214,2.86788,3486.9,3486.6,2.86811]
[1718405766427,2.86771,3487.1,3486.5,2.4121]
[1718405766579,2.86811,3486.7,3486.5,2.4121]
[1718405769438,5.73623,3486.7,3486.5,2.4121]
[1718405769743,2.86811,3486.7,3486.5,2.4121]
[1718405769901,0.83183913,3486.7,3485.7,2.4121]
[1718405770108,1.616,3487.2,3485.9,2.86868]
[1718405770109,2.86843,3486.3,3485.9,2.86868]
[1718405770442,2.86843,3486.3,3485.9,2.84068]
[1718405771612,2.86848,3486.2,3485.9,2.84068]
[1718405771816,2.86848,3486.2,3485.9,2.69868]
[1718405772441,2.86848,3486.2,3485.7,5.28093]
[1718405772655,2.86868,3486.0,3485.3,2.86919]
[1718405772943,2.86887,3485.7,3485.3,2.86919]
[1718405773718,2.86887,3485.7,3485.4,2.8691]
[1718405775620,2.86879,3485.8,3485.4,2.86904]
[1718405776156,2.86879,3485.8,3485.5,2.869]
[1718405777656,2.86879,3485.8,3485.6,2.86893]
[1718405777857,2.86879,3485.8,3485.5,2.86901]
[1718405780319,2.86879,3485.8,3485.4,2.86904]
[1718405780521,2.86902,3485.6,3484.8,2.86953]
[1718405780727,2.86927,3485.3,3484.7,5.16108]
[1718405780950,2.86934,3485.2,3484.7,2.2914]
[1718405781150,2.86951,3485.0,3484.7,2.2914]
[1718405782363,2.86945,3485.0,3484.7,2.86967]
[1718405783663,0.75,3485.8,3484.8,3.72484514]
[1718405783871,2.8687,3485.9,3485.6,2.86887]
[1718405784452,2.86878,3485.8,3485.6,2.86887]
[1718405784844,2.86871,3485.9,3485.6,2.86887]
[1718405786641,2.86862,3486.0,3485.7,2.86884]
[1718405787765,2.8687,3485.9,3485.7,2.86884]
[1718405788173,2.8687,3485.9,3485.6,2.86893]
[1718405790764,2.86863,3486.0,3485.7,2.86885]
[1718405793369,2.8682,3486.5,3486.2,2.86842]
[1718405793553,1.3775848,3487.1,3486.3,2.8683]
[1718405793782,1.3775848,3487.4,3486.5,2.86812]
[1718405794079,0.42449948,3487.3,3486.4,2.86823]
[1718405794236,2.8672,3487.8,3487.4,2.86744]
[1718405794435,0.75,3487.6,3487.3,2.86753]
[1718405794636,0.64876535,3487.6,3487.4,2.86746]
[1718405794877,2.8672,3487.8,3487.4,2.86746]
[1718405795035,2.86714,3487.8,3487.5,2.86736]
[1718405795237,0.0033935,3487.9,3487.8,2.86713]
[1718405795857,0.0033935,3487.9,3487.7,2.86716]
[1718405796065,0.0033935,3487.9,3487.5,2.86735]
[1718405796288,2.86713,3487.8,3487.5,2.86735]
[1718405796578,2.86713,3487.8,3487.3,2.86754]
[1718405796579,5.73434,3487.8,3487.4,2.86745]
[1718405796783,2.86713,3487.8,3487.4,2.86745]
[1718405797150,2.8673,3487.6,3487.3,2.86753]
[1718405797547,2.8673,3487.6,3486.9,5.12546]
[1718405797748,2.86761,3487.3,3486.9,2.8678]
[1718405797983,2.86761,3487.3,3487.0,2.86775]
[1718405798165,0.573443,3487.5,3487.2,2.86756]
[1718405798558,0.573443,3487.5,3487.1,2.86769]
[1718405798559,3.440893,3487.5,3487.1,2.86769]
[1718405801600,3.440893,3487.5,3487.2,2.86761]
[1718405802753,3.440893,3487.5,3486.8,2.86792]
[1718405802754,2.86765,3487.2,3486.8,2.86792]
[1718405803091,2.86797,3486.8,3486.3,10.17836]
[1718405803264,2.86827,3486.5,3486.2,2.86844]
[1718405803472,3.155097,3486.5,3486.2,2.86844]
[1718405803677,2.86814,3486.6,3486.3,2.86836]
[1718405804501,2.86821,3486.5,3486.3,2.86836]
[1718405804664,2.86831,3486.4,3486.1,2.86852]
[1718405805408,2.86837,3486.3,3486.0,5.1262]
[1718405805856,2.86837,3486.3,3486.0,2.8686]
[1718405806253,2.86846,3486.2,3486.0,2.8686]
[1718405806501,2.86846,3486.2,3485.7,2.86879]
[1718405806701,2.86846,3486.2,3485.8,2.86871]
[1718405806987,2.86846,3486.2,3485.9,2.86869]
[1718405807789,2.86853,3486.1,3485.9,2.86869]
[1718405808358,2.86786,3487.0,3486.1,2.8685]
[1718405808605,2.86773,3487.1,3486.3,2.86834]
[1718405808764,2.86773,3487.1,3486.2,0.05736139]
[1718405808765,2.86797,3486.8,3486.4,2.86827]
[1718405809307,2.86797,3486.8,3486.5,2.86819]
[1718405809657,2.86788,3486.9,3486.6,2.86811]
[1718405810613,2.86788,3486.9,3486.3,2.2576]
[1718405810614,2.86755,3487.3,3487.0,2.86778]
[1718405810792,2.86755,3487.3,3486.8,2.86792]
[1718405810793,2.86755,3487.3,3486.9,2.86783]
[1718405811096,2.86755,3487.3,3487.0,2.86778]
[1718405811502,2.86779,3487.0,3486.7,2.86803]
[1718405812001,2.86779,3487.0,3486.5,2.86814]
[1718405812002,2.86803,3486.8,3486.5,2.86814]
[1718405812594,2.86795,3486.9,3486.3,2.86836]
[1718405812787,2.86813,3486.6,3486.3,2.86836]
[1718405813667,2.86802,3486.8,3486.4,2.86827]
[1718405814263,2.8681,3486.7,3485.9,6.080627]
[1718405814467,2.86835,3486.4,3486.1,2.86852]
[1718405816909,2.86839,3486.3,3486.0,2.86859]
[1718405817207,0.573575,3486.8,3485.2,8.926]
[1718405817208,2.86861,3486.0,3485.6,2.86892]
[1718405817382,2.86871,3485.9,3485.6,2.86892]
[1718405818086,4.24541795,3486.5,3485.5,2.3513]
[1718405818289,4.24541795,3486.5,3485.4,2.86909]
[1718405818290,2.86885,3485.8,3485.4,2.86909]
[1718405818490,2.86888,3485.7,3485.4,2.86909]
[1718405818709,2.8687,3485.9,3485.5,2.869]
[1718405819785,2.86884,3485.8,3485.5,2.869]
[1718405820673,2.86871,3485.9,3485.6,2.86893]
[1718405822087,2.8688,3485.8,3485.6,2.86893]
[1718405823502,2.86862,3486.0,3485.6,2.86893]
[1718405823503,2.86871,3485.9,3485.6,2.86893]
[1718405823674,2.86871,3485.9,3485.7,2.86886]
[1718405823875,2.86863,3486.0,3485.7,2.86886]
[1718405824486,2.86871,3485.9,3485.6,2.86893]
[1718405824686,2.86871,3485.9,3485.7,2.86884]
[1718405825110,2.86863,3486.0,3485.7,2.86884]
[1718405827311,2.86846,3486.2,3485.9,2.86863]
[1718405828733,1.377653,3486.7,3485.9,2.925039]
[1718405829021,1.49756798,3486.8,3486.4,2.86821]
[1718405829022,3.36387397,3486.8,3486.4,2.86821]
[1718405829181,4.245543,3486.9,3486.5,2.86812]
[1718405829508,2.86797,3486.8,3486.5,2.86812]
[1718405829716,2.86805,3486.7,3486.4,2.86826]
[1718405830095,2.86812,3486.6,3486.3,2.86835]
[1718405830301,2.86812,3486.6,3486.2,2.86843]
[1718405830474,2.86804,3486.7,3486.2,2.86843]
[1718405830475,4.24548999,3486.7,3486.2,2.86843]
[1718405830678,2.86804,3486.7,3486.3,2.8683]
[1718405830907,4.24548999,3486.7,3486.3,2.8683]
[1718405831435,2.86846,3486.2,3486.0,2.8686]
[1718405831600,2.86838,3486.3,3486.1,2.86853]
[1718405832630,2.86838,3486.3,3485.9,2.86868]
[1718405832631,2.86846,3486.2,3485.9,2.86868]
[1718405833118,2.86869,3485.9,3485.7,2.86884]
[1718405833322,0.49588199,3486.3,3485.6,5.19564]
[1718405833489,1.56478319,3486.3,3485.6,5.19564]
[1718405833696,2.86876,3485.9,3485.6,5.19564]
[1718405835516,2.86884,3485.8,3485.6,5.19563]
[1718405835878,2.86884,3485.8,3485.6,2.3267]
[1718405841083,2.86871,3485.9,3485.3,2.86912]
[1718405841288,2.86891,3485.7,3485.3,2.86912]
[1718405841589,2.86891,3485.7,3485.4,2.86909]
[1718405842320,1.87366707,3486.0,3485.2,2.3083]
[1718405842321,1.37769638,3485.9,3485.2,2.3083]
[1718405842629,2.86912,3485.4,3484.8,5.17784]
[1718405842808,2.86938,3485.1,3484.9,2.86952]
[1718405843491,3.36529867,3485.3,3484.9,2.86952]
[1718405843492,2.86929,3485.2,3484.9,2.86952]
[1718405846534,2.86929,3485.2,3485.0,2.86943]
[1718405848016,2.86929,3485.2,3484.9,2.86949]
[1718405848593,2.86936,3485.1,3484.9,2.86949]
[1718405850939,1.37769638,3485.3,3484.4,2.3192]
[1718405851134,2.86971,3484.7,3484.4,2.3192]
[1718405851932,2.86977,3484.6,3484.4,5.18912]
[1718405853230,2.86977,3484.6,3484.4,2.3192]
[1718405853430,2.86985,3484.5,3484.4,2.3192]
[1718405853836,2.86998,3484.4,3484.1,5.18936]
[1718405854193,2.86998,3484.4,3484.2,2.87009]
[1718405854634,2.86986,3484.5,3484.2,2.87009]
[1718405856400,2.86993,3484.4,3484.2,2.87009]
[1718405856600,2.86986,3484.5,3484.2,2.87003]
[1718405857541,2.86986,3484.5,3484.3,2.87001]
[1718405858336,2.86986,3484.5,3484.2,2.87007]
[1718405858559,2.86987,3484.5,3484.2,2.87007]
[1718405858703,2.87,3484.4,3484.1,5.18937]
[1718405859437,2.87003,3484.3,3484.1,5.18937]
[1718405859941,2.87009,3484.2,3483.8,2.87037]
[1718405860130,2.87029,3484.0,3483.8,2.87037]
[1718405860640,2.87025,3484.1,3483.8,2.87037]
[1718405861360,2.87059,3483.7,3483.4,2.3192]
[1718405861508,2.87059,3483.7,3483.4,5.18994]
[1718405861509,2.87057,3483.7,3483.4,5.18994]
[1718405861708,2.8706,3483.6,3483.4,5.18994]
[1718405861911,2.8706,3483.6,3483.4,2.3192]
[1718405863795,2.8706,3483.6,3483.4,5.18995]
[1718405864661,2.87052,3483.7,3483.4,5.18995]
[1718405865274,2.87059,3483.6,3483.4,5.18995]
[1718405865593,2.87076,3483.4,3483.1,2.87098]
[1718405865873,3.444713,3483.6,3483.0,2.3192]
[1718405865874,2.871,3483.1,3483.0,2.3192]
[1718405866776,2.87092,3483.2,3483.0,5.19028]
[1718405866937,1.87485429,3483.9,3483.0,3.125361]
[1718405867138,1.49861118,3484.2,3483.4,2.8707]
[1718405867139,0.49633961,3484.2,3483.4,2.8707]
[1718405867450,0.49633961,3484.2,3483.5,2.87066]
[1718405867451,2.87049,3483.8,3483.5,2.87066]
[1718405867647,2.87049,3483.8,3483.6,2.87057]
[1718405868049,1.37851468,3484.3,3483.5,2.87062]
[1718405868253,0.75,3484.3,3484.2,2.87009]
[1718405868466,2.87001,3484.3,3484.0,2.87018]
[1718405868996,1.37851468,3484.6,3484.2,2.87008]
[1718405869134,3.36594749,3484.7,3484.3,2.86994]
[1718405869343,2.8698,3484.6,3484.3,2.86994]
[1718405870089,2.86986,3484.5,3484.2,2.87009]
[1718405870373,2.8701,3484.2,3483.9,2.87034]
[1718405870544,2.86986,3484.5,3483.9,2.87034]
[1718405870545,2.87008,3484.3,3483.9,2.87034]
[1718405871145,2.87043,3483.8,3483.5,2.8706]
[1718405871649,2.87044,3483.8,3483.5,2.87067]
[1718405872767,2.87044,3483.8,3483.2,2.3492]
[1718405872768,2.87065,3483.6,3483.2,2.3492]
[1718405872962,2.87069,3483.5,3483.2,2.3492]
[1718405873276,2.87085,3483.3,3483.1,2.87098]
[1718405875065,2.87085,3483.3,3482.8,2.3492]
[1718405875066,0.574159,3483.3,3482.8,5.22043]
[1718405875379,0.574159,3483.3,3482.9,2.87116]
[1718405875380,2.87094,3483.2,3482.9,2.87116]
[1718405875593,2.87094,3483.2,3482.9,2.87115]
[1718405876676,2.87084,3483.3,3483.0,2.87102]
[1718405876889,2.87071,3483.5,3483.2,2.87092]
[1718405877056,0.71199776,3483.4,3483.2,2.87092]
[1718405877244,2.87071,3483.5,3483.2,2.87092]
[1718405877881,2.87076,3483.4,3483.2,2.87092]
[1718405878299,2.87069,3483.5,3483.2,2.87092]
[1718405878600,0.49631647,3483.8,3483.5,2.3492]
[1718405878807,1.37874755,3484.1,3483.7,2.87051]
[1718405879006,2.87026,3484.0,3483.7,2.87051]
[1718405879591,4.74516402,3484.2,3483.6,2.87058]
[1718405879592,2.87035,3483.9,3483.6,2.87058]
[1718405879790,2.87035,3483.9,3483.5,5.21986]
[1718405879970,2.87035,3483.9,3483.6,2.87058]
[1718405880166,2.87028,3484.0,3483.6,2.87058]
[1718405880596,2.87028,3484.0,3483.7,2.87044]
[1718405880765,3.86920076,3484.0,3483.7,2.87044]
[1718405881607,2.87044,3483.8,3483.5,2.3492]
[1718405882692,5.743896,3484.0,3483.7,2.87051]
[1718405882965,1.87471524,3484.2,3483.8,2.87036]
[1718405883204,1.37846483,3484.2,3483.8,2.87036]
[1718405883405,2.87018,3484.1,3483.8,2.87036]
[1718405884503,2.87018,3484.1,3483.7,2.8705]
[1718405884702,1.14865015,3484.4,3483.7,2.8705]
[1718405884703,4.74464524,3484.4,3484.0,2.87019]
[1718405884869,0.40185401,3484.3,3484.0,2.87019]
[1718405885065,0.40185401,3484.3,3484.1,2.87016]
[1718405885283,4.65035884,3484.3,3484.0,2.87024]
[1718405885886,2.87011,3484.2,3483.9,2.87032]
[1718405886773,2.8702,3484.1,3483.8,2.87035]
[1718405887574,3.22808429,3484.1,3483.8,2.87035]
[1718405888080,4.60644803,3484.1,3483.8,2.87035]
[1718405888494,2.87027,3484.0,3483.8,2.87035]
[1718405889395,2.87041,3483.9,3483.6,2.87058]
[1718405890612,4.74499749,3484.0,3483.7,2.87051]
[1718405890814,4.2487461,3484.0,3483.7,2.87051]
[1718405891515,1.3784761,3484.1,3483.9,2.87034]
[1718405891690,4.2486561,3484.1,3483.8,2.87041]
[1718405891897,2.87027,3484.0,3483.8,2.87041]
[1718405894621,1.3784761,3484.1,3483.8,2.87035]
[1718405894918,1.3784761,3484.0,3483.8,2.87035]
[1718405898183,1.3784761,3484.0,3483.9,2.87034]
[1718405898418,1.3784761,3484.1,3484.0,2.87026]
[1718405899819,1.99578758,3484.3,3484.1,2.87016]
[1718405899985,0.49619991,3484.2,3484.1,2.87016]
[1718405901727,1.9958006,3484.2,3484.1,2.87016]
[1718405901896,1.9958006,3484.3,3484.1,2.87016]
[1718405902091,0.49621293,3484.2,3484.1,2.87016]
[1718405902318,1.9958006,3484.2,3484.1,2.87016]
[1718405902639,1.49958767,3484.2,3484.1,2.87016]
[1718405902789,1.9958006,3484.2,3484.1,2.87016]
[1718405902994,1.9958006,3484.2,3483.9,2.87032]
[1718405902995,4.36970767,3484.2,3483.9,2.87028]
[1718405903195,1.37836803,3484.1,3483.9,2.87028]
[1718405903396,4.24858803,3484.1,3483.7,2.87048]
[1718405903706,4.24864803,3484.0,3483.7,2.87048]
[1718405904492,2.87036,3483.9,3483.7,2.87048]
[1718405904705,4.74494096,3483.9,3483.7,2.87048]
[1718405904931,4.24872803,3483.9,3483.7,2.87048]
[1718405905095,1.37836803,3483.8,3483.7,2.87048]
[1718405905627,1.87458096,3483.8,3483.7,2.87048]
[1718405906295,0.49621293,3483.8,3483.7,2.87048]
[1718405906697,0.49621293,3483.8,3483.5,2.3492]
[1718405906907,0.673,3484.0,3483.3,2.87077]
[1718405906908,3.5436,3483.6,3483.3,2.87077]
[1718405907096,1.3785622,3483.4,3483.3,2.87077]
[1718405907324,0.49621293,3483.4,3483.3,2.87077]
[1718405907519,0.49621293,3483.4,3483.2,2.87091]
[1718405907829,4.37461356,3483.5,3483.2,2.87091]
[1718405907830,1.87480318,3483.3,3483.2,2.87091]
[1718405907996,1.37859025,3483.3,3483.2,2.87091]
[1718405908205,1.87480318,3483.3,3483.2,2.87091]
[1718405909222,1.37859025,3483.3,3483.2,2.87091]
[1718405909415,1.87480318,3483.3,3483.2,2.87091]
[1718405909635,1.37859025,3483.3,3483.2,2.87091]
[1718405909830,1.87480318,3483.3,3483.2,2.87091]
[1718405910037,1.37859025,3483.3,3483.2,2.87091]
[1718405910318,1.87480318,3483.3,3483.2,2.87091]
[1718405910506,1.37859025,3483.3,3483.2,2.87091]
[1718405910712,1.87480318,3483.3,3483.2,2.87091]
[1718405910954,1.37859025,3483.3,3483.2,2.87091]
[1718405911246,1.87480318,3483.3,3483.2,2.87091]
[1718405911449,1.87480318,3483.4,3483.2,2.87091]
[1718405915326,1.37859025,3483.4,3483.2,2.87091]
[1718405916655,4.24934025,3483.4,3483.1,2.87099]
[1718405918237,4.24934025,3483.4,3483.2,2.87092]
[1718405919424,1.80488997,3483.9,3482.0,6.16465311]
[1718405919425,1.37859025,3484.0,3483.8,2.2848]
[1718405919777,1.50407498,3484.1,3483.3,5.55148514]
[1718405919778,1.37859025,3484.5,3484.2,5.15489]
[1718405919926,0.0033935,3484.6,3484.5,2.86985]
[1718405920127,1.8747983,3484.7,3484.5,2.86985]
[1718405920423,1.37859025,3484.7,3484.5,2.86985]
[1718405920864,1.37859025,3484.7,3484.6,2.86976]
[1718405921050,2.88266523,3484.8,3484.6,2.86976]
[1718405921353,1.37859025,3484.8,3484.6,2.86974]
[1718405921657,2.86969,3484.7,3484.4,2.86991]
[1718405922261,2.86977,3484.6,3484.4,2.86991]
[1718405922560,2.86977,3484.6,3484.3,2.87001]
[1718405923873,2.86977,3484.6,3483.9,2.3749]
[1718405923874,2.87017,3484.2,3483.9,2.3749]
[1718405924076,2.87033,3484.0,3483.7,2.87049]
[1718405924241,2.87033,3484.0,3483.8,2.87041]
[1718405924422,2.87017,3484.2,3483.9,2.87033]
[1718405924761,2.87003,3484.3,3484.1,2.87017]
[1718405925527,3.37882337,3484.6,3484.5,2.86985]
[1718405925722,2.88266523,3484.8,3484.5,2.86985]
[1718405925965,2.88266523,3484.9,3484.7,2.86966]
[1718405926124,3.37882337,3485.0,3484.8,2.8696]
[1718405926327,1.50407498,3485.0,3484.8,2.8696]
[1718405926660,10.19212689,3485.1,3484.9,2.86952]
[1718405927004,5.75141689,3485.2,3484.9,2.86952]
[1718405927436,1.37805191,3485.1,3484.9,2.86952]
[1718405928353,4.24734191,3485.2,3484.9,2.86952]
[1718405929540,1.37805191,3485.2,3485.1,2.86935]
[1718405929863,4.24716191,3485.4,3485.1,2.86935]
[1718405930044,4.24724191,3485.3,3485.1,2.86935]
[1718405930437,1.37805191,3485.3,3485.1,2.86935]
[1718405930793,5.65488187,3485.4,3485.1,2.86935]
[1718405931532,2.86919,3485.3,3485.0,2.86942]
[1718405932362,2.86919,3485.3,3484.9,2.8695]
[1718405932558,2.86927,3485.2,3484.9,2.8695]
[1718405934095,2.86927,3485.2,3484.6,2.86973]
[1718405934096,2.86954,3484.9,3484.6,2.86973]
[1718405934673,2.86954,3484.9,3484.4,2.8699]
[1718405934903,2.86954,3484.9,3484.6,2.86972]
[1718405937677,2.86954,3484.9,3484.5,2.86984]
[1718405937879,2.86971,3484.7,3484.4,2.86991]
[1718405938203,2.86971,3484.7,3484.3,2.86999]
[1718405938570,2.86961,3484.8,3484.3,2.86999]
[1718405938571,2.86978,3484.6,3484.3,2.86999]
[1718405939099,2.86986,3484.5,3484.2,5.24497]
[1718405940507,2.86986,3484.5,3484.1,2.87017]
[1718405940508,2.87001,3484.3,3484.1,2.87017]
[1718405941392,2.87025,3484.1,3483.9,2.4262]
[1718405941593,2.87018,3484.1,3483.9,2.4262]
[1718405942108,2.87011,3484.2,3483.9,2.4262]
[1718405942308,1.37802087,3484.5,3484.0,2.87019]
[1718405942309,2.87002,3484.3,3484.0,2.87019]
[1718405942468,2.86993,3484.4,3484.1,2.87012]
[1718405942665,4.24785087,3484.6,3484.1,2.87012]
[1718405942666,2.87001,3484.3,3484.1,2.87012]
[1718405943102,2.87,3484.4,3484.1,2.87012]
[1718405944618,4.74365677,3484.6,3484.3,2.86995]
[1718405944820,4.24748003,3484.6,3484.3,2.86995]
[1718405945022,1.37771003,3484.7,3484.1,2.87014]
[1718405945349,1.37771003,3484.7,3483.9,2.4262]
[1718405945350,4.24748003,3484.6,3484.3,2.86997]
[1718405947231,1.37771003,3484.5,3484.3,2.86997]
[1718405947436,1.37797665,3484.5,3484.3,2.86997]
[1718405948114,2.86977,3484.6,3484.3,2.86997]
[1718405948115,1.37797665,3484.4,3484.3,2.86997]
[1718405948501,1.37797665,3484.4,3484.2,2.87007]
[1718405948697,4.24790665,3484.4,3484.1,2.87016]
[1718405948902,2.87012,3484.2,3483.9,5.29648]
[1718405949204,4.24809665,3484.2,3483.9,5.29648]
[1718405949405,2.87012,3484.2,3484.0,2.87025]
[1718405949626,4.74415489,3484.3,3484.0,5.74044]
[1718405949803,4.74415489,3484.3,3484.1,2.87017]
[1718405950006,2.86875,3485.9,3484.3,2.87001]
[1718405950007,1.87413489,3484.4,3484.3,2.87001]
[1718405950243,1.37797665,3484.4,3484.3,2.87001]
[1718405951845,1.87413489,3484.8,3484.4,2.86993]
[1718405952013,4.36825098,3485.1,3484.4,2.86993]
[1718405952014,1.37781824,3484.9,3484.7,2.86968]
[1718405952336,1.37781824,3485.0,3484.7,2.86968]
[1718405952729,1.37781824,3484.9,3484.7,2.86968]
[1718405953360,1.37781824,3484.9,3484.8,2.8696]
[1718405953550,2.86937,3485.1,3484.8,2.8696]
[1718405953711,1.37784723,3484.9,3484.8,2.8696]
[1718405954639,1.87392186,3485.0,3484.9,2.86952]
[1718405954843,1.37784723,3485.0,3484.9,2.86952]
[1718405955349,0.49607463,3485.2,3485.0,2.86944]
[1718405955556,2.86913,3485.4,3485.1,2.86935]
[1718405955851,0.49604748,3485.3,3485.1,2.86935]
[1718405956209,0.49604748,3485.2,3485.1,2.86935]
[1718405956416,0.49604748,3485.3,3485.1,2.86935]
[1718405956734,0.49604748,3485.2,3485.1,2.86935]
[1718405960066,0.49605412,3485.2,3485.1,2.86935]
[1718405961466,0.49605481,3485.2,3485.1,2.86935]
[1718405964786,0.49605481,3485.3,3485.1,2.86935]
[1718405964986,0.49605481,3485.2,3485.1,2.86935]
[1718405965188,0.49605481,3485.3,3485.1,2.86935]
[1718405965384,0.49605481,3485.2,3485.1,2.86935]
[1718405965590,0.49605481,3485.3,3485.1,2.86935]
[1718405965751,0.49605481,3485.2,3485.1,2.86935]
[1718405965951,0.49605481,3485.3,3485.1,2.86935]
[1718405966186,0.49605481,3485.2,3485.1,2.86935]
[1718405967052,0.49605481,3485.2,3485.0,2.86942]
[1718405967300,1.37740029,3485.1,3485.0,2.86942]
[1718405968075,2.86961,3484.8,3484.5,2.86977]
[1718405968274,0.573913,3484.7,3484.6,2.86976]
[1718405968480,1.95124897,3484.7,3484.6,2.86976]
[1718405969376,1.37733597,3484.7,3484.6,2.86976]
[1718405972075,2.86952,3484.9,3484.6,2.86976]
[1718405972076,4.74291078,3484.9,3484.6,2.86976]
[1718405972700,1.87339078,3484.8,3484.6,2.86976]
[1718405973107,1.37733597,3484.8,3484.6,2.86976]
[1718405973404,1.87339078,3484.8,3484.6,2.86976]
[1718405974284,1.87339078,3484.8,3484.7,2.86968]
[1718405977675,3.31545753,3485.3,3484.9,2.86952]
[1718405977676,1.50233502,3485.1,3484.9,2.86952]
[1718405977872,0.49607364,3485.0,3484.9,2.86952]
[1718405983931,0.49607364,3485.0,3484.6,2.86976]
[1718405983932,3.36551364,3485.0,3484.6,2.86976]
[1718405984240,3.36565364,3484.9,3484.6,2.86976]
[1718405984540,3.36569364,3484.8,3484.5,2.86982]
[1718405984705,1.37727657,3484.6,3484.4,2.3855]
[1718405985337,1.37727657,3484.6,3484.5,2.86985]
[1718405985541,1.87336913,3484.6,3484.5,2.86985]
[1718405985713,3.36592256,3484.6,3484.4,2.3855]
[1718405985919,1.87340271,3484.5,3484.4,2.3855]
[1718405986323,0.49609256,3484.5,3484.4,2.3855]
[1718405986527,0.49609256,3484.5,3484.4,5.25543]
[1718405987340,1.87340323,3484.5,3484.4,8.12536]
[1718405987527,0.49609256,3484.5,3484.4,5.25543]
[1718405987732,0.4961142,3484.5,3484.4,5.25543]
[1718405988954,0.49611706,3484.5,3484.4,5.25543]
[1718406000268,0.49611706,3484.5,3484.4,5.25026]
[1718406000669,0.49611706,3484.5,3484.4,8.12019]
[1718406001318,0.49611706,3484.5,3483.8,2.8704]
[1718406001319,0.49611706,3484.5,3483.8,2.87042]
[1718406001485,4.24740491,3484.1,3483.8,2.87036]
[1718406001682,4.24740491,3484.1,3483.6,2.87051]
[1718406001683,5.75179946,3483.9,3483.6,2.87051]
[1718406001901,1.37697399,3483.7,3483.6,2.87051]
[1718406002073,1.37697399,3483.7,3483.5,2.87065]
[1718406002074,1.87309105,3483.7,3483.5,2.87065]
[1718406002273,4.74361105,3483.7,3483.5,2.87065]
[1718406002595,4.24749399,3483.7,3483.5,2.87065]
[1718406002800,4.74361105,3483.7,3483.5,2.87065]
[1718406003101,4.24749399,3483.7,3483.5,2.87065]
[1718406003302,2.87052,3483.7,3483.5,2.87065]
[1718406003517,1.87309105,3483.8,3483.6,2.87059]
[1718406003717,1.37697399,3483.8,3483.7,8.02092]
[1718406003873,10.43611702,3484.8,3484.4,5.73986]
[1718406003874,1.87309105,3484.5,3484.4,5.73986]
[1718406004071,1.87309105,3484.5,3484.4,2.86993]
[1718406004271,1.50221687,3484.7,3484.4,2.86993]
[1718406004272,1.87309105,3484.6,3484.4,2.86993]
[1718406004483,1.87309105,3484.6,3484.5,2.86985]
[1718406005514,1.87309105,3484.6,3484.4,2.86991]
[1718406006127,1.37697399,3484.5,3484.4,2.86991]
[1718406006799,1.87309105,3484.6,3484.4,2.86991]
[1718406007180,1.37697399,3484.5,3484.4,2.86991]
[1718406007523,4.24682399,3484.5,3484.2,2.87004]
[1718406007828,1.37698494,3484.5,3484.3,2.87]
[1718406009402,1.37698494,3484.5,3484.4,2.86993]
[1718406009602,1.37666904,3484.5,3484.4,2.86993]
[1718406010426,1.87279763,3484.5,3484.4,2.86993]
[1718406011521,1.87279763,3484.5,3484.4,5.73986]
[1718406011722,1.87279763,3484.6,3484.5,5.7397]
[1718406011929,1.37666904,3484.6,3484.5,5.7397]
[1718406012225,1.87279763,3484.6,3484.5,5.7397]
[1718406012523,1.37666904,3484.6,3484.5,5.7397]
[1718406012731,1.87279763,3484.6,3484.5,5.7397]
[1718406012931,1.37666904,3484.6,3484.5,5.7397]
[1718406013089,1.87279763,3484.6,3484.5,5.7397]
[1718406013542,4.31574422,3484.6,3483.6,2.3088]
[1718406013851,0.672,3483.7,3483.6,5.17939]
[1718406014023,1.50221687,3483.9,3483.8,8.61126]
[1718406014221,2.57982677,3484.5,3484.0,2.87026]
[1718406014222,1.50221687,3484.1,3484.0,2.87026]
[1718406014460,1.99843623,3484.1,3483.8,2.87042]
[1718406014607,1.37730044,3484.0,3483.8,2.87042]
[1718406014812,1.8735198,3484.0,3483.8,2.87042]
[1718406015338,0.49621936,3483.9,3483.8,2.87042]
[1718406015941,1.87363471,3483.9,3483.8,2.87042]
[1718406016142,1.87369431,3483.9,3483.8,2.87042]
[1718406017061,0.4962095,3483.9,3483.8,2.87042]